bitfinex/quotes_BTCUSD_20241014
["timestamp","ask_amount","ask_price","bid_price","bid_amount"]
[1728866418018,0.65479892,62779.0,62778.0,0.50867484]
[1728866418252,0.68250696,62779.0,62778.0,0.50867484]
[1728866418482,0.69450696,62779.0,62778.0,0.50867484]
[1728866418695,0.67250696,62779.0,62778.0,0.50867484]
[1728866418882,0.68350696,62779.0,62778.0,0.50867484]
[1728866419090,0.69450696,62779.0,62778.0,0.50867484]
[1728866419751,0.69450946,62779.0,62778.0,0.50867484]
[1728866422085,0.8357798,62779.0,62778.0,0.50867484]
[1728866422530,0.8377798,62779.0,62778.0,0.50867484]
[1728866422968,0.8357798,62779.0,62778.0,0.50867484]
[1728866423190,0.82098246,62779.0,62778.0,0.50867484]
[1728866424294,0.82298246,62779.0,62778.0,0.50867484]
[1728866424986,0.98103639,62779.0,62778.0,0.50867484]
[1728866425200,1.00399107,62779.0,62778.0,0.50867484]
[1728866426320,0.84593714,62779.0,62778.0,0.50867484]
[1728866426526,0.84318277,62779.0,62778.0,0.50867484]
[1728866427813,0.84318277,62779.0,62778.0,0.50011979]
[1728866428251,0.84318277,62779.0,62778.0,0.50864045]
[1728866431363,0.89055312,62779.0,62778.0,0.50864045]
[1728866431830,0.89055312,62779.0,62778.0,0.50011979]
[1728866432058,0.81822809,62779.0,62778.0,0.50011979]
[1728866432503,0.86559844,62779.0,62778.0,0.5117505]
[1728866432729,0.86559844,62779.0,62778.0,0.50011979]
[1728866432969,0.86559844,62779.0,62778.0,0.5117505]
[1728866434128,1.21973141,62779.0,62778.0,0.5117505]
[1728866434353,1.14867588,62779.0,62778.0,0.5117505]
[1728866434571,1.24341658,62779.0,62778.0,0.5117505]
[1728866435006,1.26837284,62779.0,62778.0,0.5117505]
[1728866436181,1.17363214,62779.0,62778.0,0.5117505]
[1728866436405,1.26837284,62779.0,62778.0,0.5117505]
[1728866436619,1.17363214,62779.0,62778.0,0.5117505]
[1728866436834,1.10129476,62779.0,62778.0,0.5117505]
[1728866437049,1.26837284,62779.0,62778.0,0.5117505]
[1728866437937,1.15933378,62779.0,62778.0,0.5117505]
[1728866438576,1.15928161,62779.0,62778.0,0.5117505]
[1728866439523,1.65928161,62779.0,62778.0,0.5117505]
[1728866439959,1.65928161,62779.0,62778.0,0.50011979]
[1728866440460,1.65928161,62779.0,62778.0,0.5117547]
[1728866442020,1.63432535,62779.0,62778.0,0.5117547]
[1728866442652,1.53963682,62779.0,62778.0,0.5117547]
[1728866442860,1.63432535,62779.0,62778.0,0.5117547]
[1728866443070,1.53963682,62779.0,62778.0,0.5117547]
[1728866443506,1.63431937,62779.0,62778.0,0.5117547]
[1728866443711,1.53963682,62779.0,62778.0,0.5117547]
[1728866443943,1.63431937,62779.0,62778.0,0.5117547]
[1728866444155,1.53963682,62779.0,62778.0,0.5117547]
[1728866444787,1.63431937,62779.0,62778.0,0.5117547]
[1728866445013,1.65927574,62779.0,62778.0,0.5117547]
[1728866445503,1.56459319,62779.0,62778.0,0.5117547]
[1728866445725,1.47422531,62779.0,62778.0,0.5117547]
[1728866446160,1.40322348,62779.0,62778.0,0.5117547]
[1728866446369,1.47422531,62779.0,62778.0,0.50011979]
[1728866446862,1.40322348,62779.0,62778.0,0.51176769]
[1728866447086,1.47695282,62779.0,62778.0,0.51176769]
[1728866447310,1.5673513,62779.0,62778.0,0.51176769]
[1728866447528,1.5673513,62779.0,62778.0,0.44805169]
[1728866447746,1.5673513,62779.0,62778.0,0.35247769]
[1728866447747,1.67990985,62779.0,62778.0,0.35247769]
[1728866447961,1.66197599,62779.0,62778.0,0.34082979]
[1728866448176,1.5673513,62779.0,62778.0,0.34082979]
[1728866448388,1.5563513,62779.0,62778.0,0.34082979]
[1728866448610,0.01,62767.0,62762.0,0.23772356]
[1728866448832,0.85796011,62767.0,62762.0,0.23772356]
[1728866449089,0.85796011,62767.0,62766.0,0.01249008]
[1728866449336,0.88292011,62767.0,62766.0,0.000819]
[1728866449959,0.77336156,62767.0,62766.0,0.000819]
[1728866450411,0.77036156,62767.0,62766.0,0.000819]
[1728866450653,0.77436156,62767.0,62766.0,0.000819]
[1728866450871,1.27436156,62767.0,62766.0,0.000819]
[1728866451099,1.27736156,62767.0,62766.0,0.000819]
[1728866451327,1.27436156,62767.0,62766.0,0.000819]
[1728866451792,1.27936156,62767.0,62766.0,0.000819]
[1728866452023,1.25040156,62767.0,62766.0,0.000819]
[1728866452235,1.26440156,62767.0,62766.0,0.000819]
[1728866452455,1.40947632,62767.0,62766.0,0.000819]
[1728866452689,1.40647632,62767.0,62766.0,0.000819]
[1728866453111,1.41247632,62767.0,62766.0,0.000819]
[1728866454896,1.43743665,62767.0,62766.0,0.000819]
[1728866456264,1.29236189,62767.0,62766.0,0.000819]
[1728866459255,1.36342699,62767.0,62766.0,0.000819]
[1728866460124,1.29236189,62767.0,62766.0,0.000819]
[1728866461362,1.38717849,62767.0,62766.0,0.000819]
[1728866461568,1.29236189,62767.0,62766.0,0.00076448]
[1728866462023,0.804319,62767.0,62766.0,0.00076448]
[1728866462229,0.686319,62767.0,62766.0,0.07086448]
[1728866462447,0.527,62767.0,62766.0,0.07086448]
[1728866462661,0.686319,62767.0,62766.0,0.08255529]
[1728866463076,0.678319,62767.0,62766.0,0.07086448]
[1728866463303,0.664319,62767.0,62766.0,0.07086448]
[1728866463520,0.681319,62767.0,62766.0,0.07086448]
[1728866464173,0.681319,62767.0,62766.0,0.07186448]
[1728866464613,0.681319,62767.0,62766.0,0.08355529]
[1728866464805,0.681319,62767.0,62766.0,0.07186448]
[1728866465012,0.7062753,62767.0,62766.0,0.08355529]
[1728866465240,0.6982753,62767.0,62766.0,0.07186448]
[1728866465473,0.1982753,62767.0,62766.0,0.07186448]
[1728866466183,0.1982753,62767.0,62766.0,0.08555529]
[1728866469004,0.1982753,62767.0,62766.0,0.01545529]
[1728866469204,0.1982753,62767.0,62766.0,0.00376448]
[1728866469413,0.1982753,62767.0,62766.0,0.50376448]
[1728866470025,0.1982753,62767.0,62766.0,0.51544162]
[1728866471927,0.173319,62767.0,62766.0,0.51544162]
[1728866472326,0.174959,62767.0,62766.0,0.51344162]
[1728866472521,0.175959,62767.0,62766.0,0.51344162]
[1728866472966,0.16298141,62767.0,62766.0,0.51244162]
[1728866473230,0.16198141,62767.0,62766.0,0.51244162]
[1728866473472,0.16298141,62767.0,62766.0,0.51244162]
[1728866473702,0.16198141,62767.0,62766.0,0.51244162]
[1728866473925,0.16298141,62767.0,62766.0,0.51244162]
[1728866474363,0.16198141,62767.0,62766.0,0.51244162]
[1728866474598,0.16398141,62767.0,62766.0,0.51244162]
[1728866474823,0.16298141,62767.0,62766.0,0.51244162]
[1728866475060,0.16198141,62767.0,62766.0,0.51244162]
[1728866475508,0.16298141,62767.0,62766.0,0.51244162]
[1728866476210,0.16398141,62767.0,62766.0,0.51244162]
[1728866477415,0.33698141,62767.0,62766.0,0.51244162]
[1728866484141,0.21144018,62767.0,62766.0,0.51244162]
[1728866484352,0.21144018,62767.0,62766.0,0.50076448]
[1728866484567,0.21144018,62767.0,62766.0,0.51244108]
[1728866484970,0.23639718,62767.0,62766.0,0.51244108]
[1728866487784,0.23639811,62767.0,62766.0,0.51244108]
[1728866488235,0.18893841,62767.0,62766.0,0.51244108]
[1728866488700,0.18893841,62767.0,62766.0,0.50076448]
[1728866489144,0.18893841,62767.0,62766.0,0.51244482]
[1728866491951,0.21144111,62767.0,62766.0,0.51244482]
[1728866492184,0.21144111,62767.0,62766.0,0.50076448]
[1728866492603,0.21144111,62767.0,62766.0,0.51244482]
[1728866493504,0.16398141,62767.0,62766.0,0.51244482]
[1728866493951,0.16398141,62767.0,62766.0,0.50076448]
[1728866494179,0.16398141,62767.0,62766.0,0.51244482]
[1728866495036,0.18893928,62767.0,62766.0,0.51244482]
[1728866495260,0.2364073,62767.0,62766.0,0.51244482]
[1728866495465,0.18893928,62767.0,62766.0,0.51244482]
[1728866498536,0.18893928,62767.0,62766.0,0.50076448]
[1728866498968,0.18893928,62767.0,62766.0,0.51244482]
[1728866501208,0.26014767,62767.0,62766.0,0.51244482]
[1728866501662,0.26014767,62767.0,62766.0,0.50076448]
[1728866502080,0.2351898,62767.0,62766.0,0.51244482]
[1728866503188,0.16398141,62767.0,62766.0,0.51244482]
[1728866503427,0.2352171,62767.0,62766.0,0.51244482]
[1728866504286,0.16398141,62767.0,62766.0,0.51244482]
[1728866505122,0.1889393,62767.0,62766.0,0.51244482]
[1728866509959,0.46403986,62767.0,62766.0,0.51244482]
[1728866510213,0.3690393,62767.0,62766.0,0.51244482]
[1728866510487,0.76582186,62767.0,62766.0,0.51244482]
[1728866510719,0.88457256,62767.0,62766.0,0.51244482]
[1728866511180,0.88457256,62767.0,62766.0,0.50076448]
[1728866511434,0.88457256,62767.0,62766.0,0.51244473]
[1728866511682,0.99613111,62767.0,62766.0,0.51244473]
[1728866511935,0.73986397,62767.0,62766.0,0.51244473]
[1728866512195,0.73886397,62767.0,62766.0,0.51244473]
[1728866512657,0.85542252,62767.0,62766.0,0.51244473]
[1728866512878,0.86042252,62767.0,62766.0,0.51244473]
[1728866513136,0.85642252,62767.0,62766.0,0.51244473]
[1728866513616,0.86242252,62767.0,62766.0,0.51244473]
[1728866514851,0.85642252,62767.0,62766.0,0.51244473]
[1728866515083,0.88138212,62767.0,62766.0,0.51244473]
[1728866515287,0.87638212,62767.0,62766.0,0.51244473]
[1728866515497,0.88238212,62767.0,62766.0,0.51244473]
[1728866516210,0.88938212,62767.0,62766.0,0.51244473]
[1728866516918,1.17031038,62767.0,62766.0,0.51244473]
[1728866517169,1.17031038,62767.0,62757.0,0.000818]
[1728866517170,0.68668151,62758.0,62757.0,0.000818]
[1728866517382,0.84790552,62758.0,62757.0,0.000818]
[1728866517588,0.94288042,62758.0,62757.0,0.000818]
[1728866517792,0.94283863,62758.0,62757.0,0.000818]
[1728866517999,0.96780362,62758.0,62757.0,0.000818]
[1728866518463,1.12917333,62758.0,62757.0,0.000818]
[1728866518916,1.13117333,62758.0,62757.0,0.000818]
[1728866519141,0.96780362,62758.0,62757.0,0.000818]
[1728866519606,0.87287051,62758.0,62757.0,0.000818]
[1728866519821,0.90087051,62758.0,62757.0,0.000818]
[1728866520073,0.99780362,62758.0,62757.0,0.000818]
[1728866520328,1.15917333,62758.0,62757.0,0.000818]
[1728866520570,1.15712995,62758.0,62757.0,0.000818]
[1728866521175,1.14312995,62758.0,62757.0,0.000818]
[1728866521429,1.03424022,62758.0,62757.0,0.000818]
[1728866521671,1.04824022,62758.0,62757.0,0.000818]
[1728866521903,0.93568167,62758.0,62757.0,0.000818]
[1728866522157,0.89671668,62758.0,62757.0,0.000818]
[1728866522378,0.91071668,62758.0,62757.0,0.000818]
[1728866522590,0.92471668,62758.0,62757.0,0.000818]
[1728866522798,0.91071668,62758.0,62757.0,0.000818]
[1728866523223,1.03727523,62758.0,62757.0,0.000818]
[1728866523712,1.10841119,62758.0,62757.0,0.000818]
[1728866524387,1.10840004,62758.0,62757.0,0.000818]
[1728866524889,1.13416496,62758.0,62757.0,0.000818]
[1728866525149,1.06424144,62758.0,62757.0,0.000818]
[1728866525385,1.06424144,62758.0,62757.0,0.500818]
[1728866525593,1.06424144,62758.0,62757.0,0.51036736]
[1728866525805,1.05024144,62758.0,62757.0,0.51036736]
[1728866526043,1.05301191,62758.0,62757.0,0.51036736]
[1728866526257,1.06701191,62758.0,62757.0,0.51036736]
[1728866526467,1.05301191,62758.0,62757.0,0.51036736]
[1728866526694,1.06701191,62758.0,62757.0,0.07099093]
[1728866526904,1.56701191,62758.0,62757.0,0.07099093]
[1728866527117,1.56701191,62758.0,62757.0,0.06144157]
[1728866527371,1.77432341,62758.0,62757.0,0.02957257]
[1728866527577,1.77432341,62758.0,62757.0,5.7e-07]
[1728866527578,1.67957046,62758.0,62757.0,5.7e-07]
[1728866527796,0.43669941,62744.0,62743.0,0.000819]
[1728866528030,1.00102565,62744.0,62743.0,0.000819]
[1728866528273,1.00102565,62744.0,62743.0,0.01038613]
[1728866528454,0.97862846,62744.0,62743.0,0.000819]
[1728866528713,0.86606991,62744.0,62743.0,0.000819]
[1728866529553,0.88006991,62744.0,62743.0,0.000819]
[1728866530409,1.39406991,62744.0,62743.0,0.000819]
[1728866532165,1.36909981,62744.0,62743.0,0.000819]
[1728866534946,1.39407037,62744.0,62743.0,0.000819]
[1728866536714,1.39607037,62744.0,62743.0,0.000819]
[1728866536924,1.39407037,62744.0,62743.0,0.000819]
[1728866539364,1.38007037,62744.0,62743.0,0.000819]
[1728866539846,1.38207037,62744.0,62743.0,0.000819]
[1728866540089,1.49462892,62744.0,62743.0,0.000819]
[1728866541050,1.55585827,62744.0,62743.0,0.000819]
[1728866541527,1.49462892,62744.0,62743.0,0.000819]
[1728866541773,1.38207037,62744.0,62743.0,0.000819]
[1728866542012,1.48365836,62744.0,62743.0,0.000819]
[1728866542509,1.46965836,62744.0,62743.0,0.000819]
[1728866542785,1.48365836,62744.0,62743.0,0.000819]
[1728866544615,0.68922451,62741.0,62740.0,0.00082]
[1728866544860,1.01181823,62741.0,62740.0,0.00082]
[1728866546005,1.02581823,62741.0,62740.0,0.00082]
[1728866546239,1.02859016,62741.0,62740.0,0.00082]
[1728866546489,1.04259016,62741.0,62740.0,0.00082]
[1728866549719,0.77881139,62741.0,62740.0,0.00082]
[1728866549926,0.78081139,62741.0,62740.0,0.00082]
[1728866550468,0.89336994,62741.0,62740.0,0.00082]
[1728866553152,0.7666619,62741.0,62740.0,0.00082]
[1728866553385,0.7686619,62741.0,62740.0,0.00082]
[1728866553645,0.92803161,62741.0,62740.0,0.00082]
[1728866554907,0.7686619,62741.0,62740.0,0.00082]
[1728866555423,0.79363557,62741.0,62740.0,0.00082]
[1728866555665,0.8408027,62741.0,62740.0,0.00082]
[1728866556672,0.79363557,62741.0,62740.0,0.00082]
[1728866557885,0.90619412,62741.0,62740.0,0.00082]
[1728866558173,1.13831452,62741.0,62740.0,0.00082]
[1728866558680,1.06756383,62741.0,62740.0,0.00082]
[1728866559705,1.16189809,62741.0,62740.0,0.00082]
[1728866560455,1.66189809,62741.0,62740.0,0.00082]
[1728866560700,1.56756383,62741.0,62740.0,0.00082]
[1728866561907,1.54259016,62741.0,62740.0,0.00082]
[1728866564580,1.54259016,62741.0,62740.0,1e-06]
[1728866565089,1.5675652,62741.0,62740.0,1e-06]
[1728866567298,0.16743541,62730.0,62726.0,0.23772356]
[1728866567549,0.75104019,62730.0,62726.0,0.23772356]
[1728866567781,0.75104019,62730.0,62729.0,0.01057861]
[1728866568024,0.77879101,62730.0,62729.0,0.000819]
[1728866568514,0.79279101,62730.0,62729.0,0.000819]
[1728866568747,0.66423246,62730.0,62729.0,0.000819]
[1728866568980,0.77679101,62730.0,62729.0,0.000819]
[1728866569237,0.92309903,62730.0,62729.0,0.000819]
[1728866569522,1.29079101,62730.0,62729.0,0.000819]
[1728866569962,1.30479101,62730.0,62729.0,0.000819]
[1728866570472,1.46616072,62730.0,62729.0,0.000819]
[1728866571169,1.45216072,62730.0,62729.0,0.000819]
[1728866571683,1.46616072,62730.0,62729.0,0.000819]
[1728866572153,1.44118386,62730.0,62729.0,0.000819]
[1728866572346,1.55954846,62730.0,62729.0,0.000819]
[1728866573532,1.44118386,62730.0,62729.0,0.000819]
[1728866574987,1.46616139,62730.0,62729.0,0.000819]
[1728866575248,1.58071994,62730.0,62729.0,0.000819]
[1728866575506,0.00102241,62717.0,62716.0,0.23772356]
[1728866575756,0.61943089,62717.0,62716.0,0.23772356]
[1728866575998,0.64310974,62717.0,62716.0,0.00977613]
[1728866576239,0.18347041,62716.0,62715.0,0.000819]
[1728866576482,0.35951664,62716.0,62715.0,0.000819]
[1728866577167,0.40686711,62716.0,62715.0,0.000819]
[1728866577396,0.50686711,62716.0,62715.0,0.000819]
[1728866577625,0.45951664,62716.0,62715.0,0.000819]
[1728866577869,0.50686247,62716.0,62715.0,0.000819]
[1728866578124,0.51786247,62716.0,62715.0,0.000819]
[1728866578384,0.48151664,62716.0,62715.0,0.000819]
[1728866578832,0.48351664,62716.0,62715.0,0.000819]
[1728866579059,0.53286247,62716.0,62715.0,0.000819]
[1728866580463,0.54486247,62716.0,62715.0,0.000819]
[1728866580691,0.46969442,62716.0,62715.0,0.000819]
[1728866580957,0.49649569,62716.0,62715.0,0.000819]
[1728866581442,0.54384152,62716.0,62715.0,0.000819]
[1728866582592,0.49649569,62716.0,62715.0,0.000819]
[1728866585133,0.52147607,62716.0,62715.0,0.000819]
[1728866587175,0.52148061,62716.0,62715.0,0.000819]
[1728866587634,0.32245079,62716.0,62715.0,0.000819]
[1728866591962,0.29747041,62716.0,62715.0,0.000819]
[1728866594936,0.32245106,62716.0,62715.0,0.000819]
[1728866601939,0.29747041,62716.0,62715.0,0.000819]
[1728866604691,0.54461624,62716.0,62715.0,0.000819]
[1728866605148,0.52225105,62716.0,62715.0,0.000819]
[1728866605362,0.56959688,62716.0,62715.0,0.000819]
[1728866606022,0.52225105,62716.0,62715.0,0.000819]
[1728866606239,0.5696741,62716.0,62715.0,0.000819]
[1728866606489,0.52225105,62716.0,62715.0,0.000819]
[1728866609638,0.5932698,62716.0,62715.0,0.000819]
[1728866611303,0.52225105,62716.0,62715.0,0.000819]
[1728866611985,0.49727041,62716.0,62715.0,0.000819]
[1728866614880,0.42027041,62716.0,62715.0,0.000819]
[1728866615110,0.44525104,62716.0,62715.0,0.000819]
[1728866616401,0.43325104,62716.0,62715.0,0.000819]
[1728866616815,0.41925104,62716.0,62715.0,0.000819]
[1728866617024,0.43025104,62716.0,62715.0,0.000819]
[1728866621929,0.40527041,62716.0,62715.0,0.000819]
[1728866622154,0.50020296,62716.0,62715.0,0.000819]
[1728866624922,0.52518345,62716.0,62715.0,0.000819]
[1728866626171,0.50218345,62716.0,62715.0,0.000819]
[1728866626421,0.3074509,62716.0,62715.0,0.000819]
[1728866627376,0.37868642,62716.0,62715.0,0.000819]
[1728866629037,0.37868896,62716.0,62715.0,0.000819]
[1728866630651,0.3074509,62716.0,62715.0,0.000819]
[1728866630917,0.40243498,62716.0,62715.0,0.000819]
[1728866632027,0.28247041,62716.0,62715.0,0.000819]
[1728866632253,0.37745449,62716.0,62715.0,0.000819]
[1728866633080,0.28247041,62716.0,62715.0,0.000819]
[1728866633303,0.37745449,62716.0,62715.0,0.000819]
[1728866635036,0.40243474,62716.0,62715.0,0.000819]
[1728866635265,0.30745066,62716.0,62715.0,0.000819]
[1728866635490,0.40243474,62716.0,62715.0,0.000819]
[1728866636575,0.30745066,62716.0,62715.0,0.000819]
[1728866637957,0.40244875,62716.0,62715.0,0.000819]
[1728866638409,0.40244934,62716.0,62715.0,0.000819]
[1728866639590,0.30745066,62716.0,62715.0,0.000819]
[1728866639838,0.40244934,62716.0,62715.0,0.000819]
[1728866640754,0.30745066,62716.0,62715.0,0.000819]
[1728866641907,0.28247041,62716.0,62715.0,0.000819]
[1728866642143,0.37746935,62716.0,62715.0,0.000819]
[1728866645183,0.40244972,62716.0,62715.0,0.000819]
[1728866646408,0.30745078,62716.0,62715.0,0.000819]
[1728866647386,0.40244972,62716.0,62715.0,0.000819]
[1728866647876,0.39144972,62716.0,62715.0,0.000819]
[1728866648353,0.30245078,62716.0,62715.0,0.000819]
[1728866648602,0.29145078,62716.0,62715.0,0.000819]
[1728866648861,0.38645829,62716.0,62715.0,0.000819]
[1728866649108,0.48285857,62716.0,62715.0,0.000819]
[1728866649361,0.46595078,62716.0,62715.0,0.000819]
[1728866649831,0.47195078,62716.0,62715.0,0.000819]
[1728866652188,0.44697041,62716.0,62715.0,0.000819]
[1728866654055,0.98147653,62716.0,62715.0,0.000819]
[1728866654284,0.74375297,62716.0,62715.0,0.000819]
[1728866655254,0.76873465,62716.0,62715.0,0.000819]
[1728866656172,0.88748025,62716.0,62715.0,0.000819]
[1728866656399,0.76873465,62716.0,62715.0,0.000819]
[1728866657094,0.88747335,62716.0,62715.0,0.000819]
[1728866657832,0.6561761,62716.0,62715.0,0.000819]
[1728866658764,0.77490878,62716.0,62715.0,0.000819]
[1728866659220,0.6561761,62716.0,62715.0,0.000819]
[1728866660669,0.77490499,62716.0,62715.0,0.000819]
[1728866660915,0.6561761,62716.0,62715.0,0.000819]
[1728866661159,0.7749022,62716.0,62715.0,0.000819]
[1728866661910,0.74992052,62716.0,62715.0,0.000819]
[1728866662121,0.63119442,62716.0,62715.0,0.000819]
[1728866662375,0.74991929,62716.0,62715.0,0.000819]
[1728866662841,0.63119442,62716.0,62715.0,0.000819]
[1728866663072,0.74991765,62716.0,62715.0,0.000819]
[1728866663305,0.63119442,62716.0,62715.0,0.000819]
[1728866663734,0.74991443,62716.0,62715.0,0.000819]
[1728866664196,0.63119442,62716.0,62715.0,0.000819]
[1728866664407,0.74991274,62716.0,62715.0,0.000819]
[1728866664825,0.63119442,62716.0,62715.0,0.000819]
[1728866665048,0.65617684,62716.0,62715.0,0.000819]
[1728866665492,0.77489449,62716.0,62715.0,0.000819]
[1728866666134,0.65617684,62716.0,62715.0,0.000819]
[1728866671434,0.76873539,62716.0,62715.0,0.000819]
[1728866672116,0.74375297,62716.0,62715.0,0.000819]
[1728866675150,0.76873676,62716.0,62715.0,0.000819]
[1728866675862,0.65617821,62716.0,62715.0,0.000819]
[1728866676098,0.77485466,62716.0,62715.0,0.000819]
[1728866676775,0.65617821,62716.0,62715.0,0.000819]
[1728866677016,0.77485466,62716.0,62715.0,0.000819]
[1728866677238,0.31229244,62716.0,62715.0,0.000819]
[1728866678134,0.3686676,62716.0,62715.0,0.000819]
[1728866680202,0.36764519,62716.0,62715.0,0.000819]
[1728866682016,0.29643179,62716.0,62715.0,0.000819]
[1728866682259,0.271448,62716.0,62715.0,0.000819]
[1728866683156,0.28628551,62716.0,62715.0,0.01059434]
[1728866683445,0.28628551,62716.0,62715.0,0.000819]
[1728866685198,0.29642839,62716.0,62715.0,0.000819]
[1728866685634,0.29642839,62716.0,62715.0,0.01059434]
[1728866685875,0.29642839,62716.0,62715.0,0.000819]
[1728866686090,0.29642839,62716.0,62715.0,0.01059434]
[1728866686312,0.31126179,62716.0,62715.0,0.000819]
[1728866686757,0.05181379,62716.0,62715.0,0.000819]
[1728866686986,0.05181379,62716.0,62715.0,0.58283504]
[1728866687241,0.012,62716.0,62715.0,0.61781015]
[1728866687472,0.012,62716.0,62715.0,0.62756225]
[1728866687916,0.012,62716.0,62715.0,0.5150037]
[1728866688156,0.006,62716.0,62715.0,0.62756225]
[1728866688380,0.23772356,62730.0,62728.0,0.191398]
[1728866688606,0.01645267,62729.0,62728.0,0.54088056]
[1728866688828,0.01645267,62729.0,62728.0,0.55061504]
[1728866689047,0.01645267,62729.0,62728.0,0.04171448]
[1728866689476,0.01745267,62729.0,62728.0,0.04371448]
[1728866689917,0.01645267,62729.0,62728.0,0.04171448]
[1728866690135,0.01745267,62729.0,62728.0,0.04371448]
[1728866690357,0.00264,62729.0,62728.0,0.04171448]
[1728866691079,0.00264,62729.0,62728.0,0.20113248]
[1728866691510,0.00364,62729.0,62728.0,0.20413248]
[1728866691747,0.00464,62729.0,62728.0,0.21113248]
[1728866691940,0.00264,62729.0,62728.0,0.20813248]
[1728866692195,0.00164,62729.0,62728.0,0.20113248]
[1728866692423,0.00364,62729.0,62728.0,0.21013248]
[1728866692645,0.00364,62729.0,62728.0,0.20413248]
[1728866692867,0.00264,62729.0,62728.0,0.20113248]
[1728866693089,0.00364,62729.0,62728.0,0.20713248]
[1728866695158,0.00464,62729.0,62728.0,0.37454441]
[1728866695399,0.00464,62729.0,62728.0,0.37533408]
[1728866695618,0.00464,62729.0,62728.0,0.37733408]
[1728866695868,0.00464,62729.0,62728.0,0.37533408]
[1728866697862,0.00464,62729.0,62728.0,0.37135649]
[1728866698798,0.00464,62729.0,62728.0,0.21013248]
[1728866701209,0.00464,62729.0,62728.0,0.05071448]
[1728866701442,0.00464,62729.0,62728.0,0.01873448]
[1728866701443,0.164055,62729.0,62728.0,0.01873448]
[1728866701691,0.164055,62729.0,62728.0,0.009]
[1728866701928,0.164055,62729.0,62728.0,0.01866907]
[1728866702180,0.33567741,62729.0,62728.0,0.009]
[1728866702917,0.159441,62719.0,62718.0,0.23772356]
[1728866703411,0.159441,62719.0,62718.0,0.00968178]
[1728866703855,0.241341,62719.0,62718.0,0.00968178]
[1728866704341,0.335341,62719.0,62718.0,0.00968178]
[1728866704815,0.1759,62719.0,62718.0,0.00968178]
[1728866705072,0.20087689,62719.0,62718.0,0.0097186]
[1728866705286,0.20087689,62719.0,62716.0,0.30398555]
[1728866705519,0.20087689,62719.0,62718.0,0.001]
[1728866705766,0.36031789,62719.0,62718.0,0.001]
[1728866705967,0.36031789,62719.0,62718.0,0.0426986]
[1728866706209,0.36031789,62719.0,62718.0,0.0416986]
[1728866706582,0.36031789,62719.0,62718.0,0.0436986]
[1728866707039,0.20087689,62719.0,62718.0,0.0436986]
[1728866707730,0.20087689,62719.0,62718.0,0.0416986]
[1728866707731,0.36031789,62719.0,62718.0,0.0416986]
[1728866708156,0.36131789,62719.0,62718.0,0.0466986]
[1728866708662,0.36131789,62719.0,62718.0,0.0446986]
[1728866708908,0.36031789,62719.0,62718.0,0.0426986]
[1728866709153,0.36031789,62719.0,62718.0,0.0446986]
[1728866709585,0.36031789,62719.0,62718.0,0.003]
[1728866709813,0.36031789,62719.0,62718.0,0.01271948]
[1728866710485,0.59804145,62719.0,62718.0,0.01271948]
[1728866710731,0.72206386,62719.0,62718.0,0.01271948]
[1728866710948,0.72206386,62719.0,62718.0,0.003]
[1728866710949,0.4843403,62719.0,62718.0,0.003]
[1728866711453,0.4843403,62719.0,62718.0,0.001]
[1728866711660,0.1,62718.0,62715.0,0.000819]
[1728866711877,0.33517041,62716.0,62715.0,0.000819]
[1728866713241,0.34017041,62716.0,62715.0,0.000819]
[1728866714402,0.34417041,62716.0,62715.0,0.000819]
[1728866714664,0.62839442,62716.0,62715.0,0.000819]
[1728866714877,0.88833581,62716.0,62715.0,0.000819]
[1728866715112,0.77093516,62716.0,62715.0,0.000819]
[1728866715567,0.76693516,62716.0,62715.0,0.000819]
[1728866716071,0.65737661,62716.0,62715.0,0.000819]
[1728866716303,0.66937661,62716.0,62715.0,0.001819]
[1728866716818,0.76950925,62716.0,62715.0,0.001819]
[1728866717251,0.76150925,62716.0,62715.0,0.001819]
[1728866717466,0.76050925,62716.0,62715.0,0.000819]
[1728866718389,0.78850925,62716.0,62715.0,0.000819]
[1728866720234,0.68837661,62716.0,62715.0,0.000819]
[1728866721998,0.66339442,62716.0,62715.0,0.000819]
[1728866725128,0.68837867,62716.0,62715.0,0.000819]
[1728866725845,0.69001667,62716.0,62715.0,0.000819]
[1728866729078,0.69201667,62716.0,62715.0,0.000819]
[1728866729353,0.85138638,62716.0,62715.0,0.000819]
[1728866729807,1.35138638,62716.0,62715.0,0.000819]
[1728866730295,1.33738638,62716.0,62715.0,0.000819]
[1728866730535,1.31238638,62716.0,62715.0,0.000819]
[1728866730742,1.32638638,62716.0,62715.0,0.000819]
[1728866730963,1.34038638,62716.0,62715.0,0.000819]
[1728866732142,1.31740213,62716.0,62715.0,0.000819]
[1728866732390,1.31540213,62716.0,62715.0,0.000819]
[1728866733971,1.31740213,62716.0,62715.0,0.000819]
[1728866734430,1.31540213,62716.0,62715.0,0.000819]
[1728866735123,1.34038715,62716.0,62715.0,0.000819]
[1728866736028,1.45314815,62716.0,62715.0,0.000819]
[1728866738368,1.34038715,62716.0,62715.0,0.000819]
[1728866741272,1.17901744,62716.0,62715.0,0.000819]
[1728866741277,1.17401744,62716.0,62715.0,0.000819]
[1728866741517,1.12603242,62716.0,62715.0,0.000819]
[1728866742501,1.24579342,62716.0,62715.0,0.000819]
[1728866743462,1.26879342,62716.0,62715.0,0.000819]
[1728866743927,1.45696773,62716.0,62715.0,0.000819]
[1728866744173,0.26050141,62704.0,62703.0,0.00082]
[1728866744420,0.44472542,62704.0,62703.0,0.00082]
[1728866745419,0.45272542,62704.0,62703.0,0.00082]
[1728866745888,0.57401302,62704.0,62703.0,0.00082]
[1728866746576,1.08101302,62704.0,62703.0,0.00082]
[1728866749667,1.08378662,62704.0,62703.0,0.00082]
[1728866752162,1.05773237,62704.0,62703.0,0.00082]
[1728866755088,1.08272059,62704.0,62703.0,0.00082]
[1728866755301,1.16242059,62704.0,62703.0,0.00082]
[1728866755514,1.20973163,62704.0,62703.0,0.00082]
[1728866756426,1.16242059,62704.0,62703.0,0.00082]
[1728866756642,1.16742059,62704.0,62703.0,0.00082]
[1728866757531,1.23849299,62704.0,62703.0,0.00082]
[1728866757777,1.23349299,62704.0,62703.0,0.00082]
[1728866757993,1.16242059,62704.0,62703.0,0.00082]
[1728866759301,1.25722152,62704.0,62703.0,0.00082]
[1728866759760,1.42359123,62704.0,62703.0,0.00082]
[1728866760172,1.3287903,62704.0,62703.0,0.00082]
[1728866761401,1.3307903,62704.0,62703.0,0.00082]
[1728866762095,1.30580208,62704.0,62703.0,0.00082]
[1728866764538,1.30380208,62704.0,62703.0,0.00082]
[1728866764958,1.32879123,62704.0,62703.0,0.00082]